[Event "5th EKA IIFL Investment 2019"]
[Site "Mumbai"]
[Date "2019.12.31"]
[Round "2.19"]
[White "Srihari, L R"]
[Black "Abdisalimov, Abdimalik"]
[Result "1-0"]
[ECO "A04"]
[WhiteElo "2271"]
[BlackElo "2394"]
[Annotator "ChessBase"]
[PlyCount "58"]
[EventDate "2019.12.30"]
[EventType "swiss"]
[EventCountry "IND"]
[SourceTitle "playchess.com"]
[Source "ChessBase"]
[SourceQuality "1"]
[TimeControl "40/5400+30:1800+30"]

1. Nf3 {[%emt 0:00:00]} c5 {[%emt 0:00:00]} 2. g3 {[%emt 0:01:36]} g6 {[%emt 0:00:51]} 3. Bg2 {[%emt 0:00:08]} Bg7 {[%emt 0:00:09]} 4. O-O {[%emt 0:00:06]} Nc6 {[%emt 0:00:07]} 5. c3 {[%emt 0:00:05]} e5 {[%emt 0:00:15]} 6. e4 {[%emt 0:02:21]} Nge7 {[%emt 0:00:11]} 7. d3 {[%emt 0:00:43]} O-O {[%emt 0:00:18]} 8. a3 {[%emt 0:00:39]} a5 {[%emt 0:04:01]} 9. a4 {[%emt 0:00:19]} h6 {[%emt 0:00:44]} 10. Na3 {[%emt 0:01:10]} d6 {[%emt 0:06:29]} 11. Nd2 {[%emt 0:02:14]} f5 {[%emt 0:04:47]} 12. Ndc4 {[%emt 0:05:47]} Be6 {[%emt 0:01:09]} 13. Nb5 {[%emt 0:02:20]} Nc8 {[%emt 0:04:22]} 14. f4 {[%emt 0:03:12]} Rf7 {[%emt 0:13:06]} 15. Qe2 {[%emt 0:13:57]} Qf8 {[%emt 0:08:01]} 16. Rd1 {[%emt 0:14:09]} Rd7 {[%emt 0:08:21]} 17. d4 {[%emt 0:06:06]} cxd4 {[%emt 0:05:18]} 18. cxd4 {[%emt 0:00:23]} Bxc4 {[%emt 0:00:48]} 19. Qxc4+ {[%emt 0:00:02]} Kh8 {[%emt 0:00:20]} 20. dxe5 {[%emt 0:03:46]} Nb6 {[%emt 0:00:21]} 21. Qb3 {[%emt 0:03:09]} dxe5 {[%emt 0:00:18]} 22. Be3 {[%emt 0:00:02]} Qd8 {[%emt 0:04:05]} 23. Rxd7 {[%emt 0:02:01]} Nxd7 {[%emt 0:00:02]} 24. Nd6 {[%emt 0:00:09]} Qf8 {[%emt 0:04:19]} 25. Nf7+ {[%emt 0:05:52]} Kh7 {[%emt 0:00:47]} 26. Qe6 {[%emt 0:01:37]} Ne7 {[%emt 0:00:14]} 27. Rd1 {[%emt 0:05:07]} Nf6 {[%emt 0:00:10]} 28. Bc5 {[%emt 0:00:47]} Re8 {[%emt 0:00:01]} 29. fxe5 {[%emt 0:00:10]} g5 {[%emt 0:00:30]} 1-0

[Event "5th EKA IIFL Investment 2019"]
[Site "Mumbai"]
[Date "2019.12.31"]
[Round "2.20"]
[White "Ziatdinov, Raset"]
[Black "Eraschenkov, Denis"]
[Result "1-0"]
[ECO "B35"]
[WhiteElo "2204"]
[BlackElo "2386"]
[Annotator "ChessBase"]
[PlyCount "45"]
[EventDate "2019.12.30"]
[EventType "swiss"]
[EventCountry "IND"]
[SourceTitle "playchess.com"]
[Source "ChessBase"]
[SourceQuality "1"]
[TimeControl "40/5400+30:1800+30"]

1. e4 {[%emt 0:00:00]} c5 {[%emt 0:00:00]} 2. Nf3 {[%emt 0:00:00]} Nc6 {[%emt 0:00:00]} 3. d4 {[%emt 0:00:00]} cxd4 {[%emt 0:00:01]} 4. Nxd4 {[%emt 0:00:00]} g6 {[%emt 0:00:07]} 5. Nc3 {[%emt 0:00:07]} Bg7 {[%emt 0:00:10]} 6. Be3 {[%emt 0:00:09]} Nf6 {[%emt 0:00:18]} 7. Bc4 {[%emt 0:00:58]} O-O {[%emt 0:09:54]} 8. Bb3 {[%emt 0:00:12]} d6 {[%emt 0:06:17]} 9. f3 {[%emt 0:00:14]} Bd7 {[%emt 0:00:14]} 10. h4 {[%emt 0:00:54]} h5 {[%emt 0:09:50]} 11. Qd2 {[%emt 0:00:30]} Ne5 {[%emt 0:00:30]} 12. O-O-O {[%emt 0:00:39]} Rc8 {[%emt 0:00:32]} 13. Bg5 {[%emt 0:00:20]} Rc5 {[%emt 0:01:23]} 14. Rhe1 {[%emt 0:00:46]} b5 {[%emt 0:05:38]} 15. Kb1 {[%emt 0:01:12]} a5 {[%emt 0:10:10]} 16. a3 {[%emt 0:01:46]} b4 {[%emt 0:10:16]} 17. Na4 {[%emt 0:06:34]} Bxa4 {[%emt 0:00:30]} 18. Bxa4 {[%emt 0:00:30]} Nc4 {[%emt 0:14:10]} 19. Qe2 {[%emt 0:05:14]} Nb6 {[%emt 0:04:47]} 20. Bb5 {[%emt 0:02:57]} Qc8 {[%emt 0:08:05]} 21. f4 {[%emt 0:03:24]} Rc7 {[%emt 0:05:03]} 22. Nb3 {[%emt 0:03:58]} d5 {[%emt 0:03:24]} 23. Nxa5 {[%emt 0:04:24]} 1-0

[Event "5th EKA IIFL Investment 2019"]
[Site "Mumbai"]
[Date "2019.12.31"]
[Round "2.21"]
[White "Sammed Jaykumar, Shete"]
[Black "Navalgund, Niranjan"]
[Result "1/2-1/2"]
[ECO "C75"]
[WhiteElo "2381"]
[BlackElo "2231"]
[Annotator "ChessBase"]
[PlyCount "62"]
[EventDate "2019.12.30"]
[EventType "swiss"]
[EventCountry "IND"]
[SourceTitle "playchess.com"]
[Source "ChessBase"]
[SourceQuality "1"]
[TimeControl "40/5400+30:1800+30"]

1. e4 {[%emt 0:00:00]} e5 {[%emt 0:00:00]} 2. Nf3 {[%emt 0:00:00]} Nc6 {[%emt 0:00:01]} 3. Bb5 {[%emt 0:00:00]} a6 {[%emt 0:00:12]} 4. Ba4 {[%emt 0:00:00]} d6 {[%emt 0:00:04]} 5. c3 {[%emt 0:01:23]} Bd7 {[%emt 0:00:29]} 6. O-O {[%emt 0:01:26]} g6 {[%emt 0:00:09]} 7. h3 {[%emt 0:02:15]} Bg7 {[%emt 0:00:08]} 8. d4 {[%emt 0:00:38]} Nf6 {[%emt 0:01:12]} 9. Re1 {[%emt 0:02:27]} O-O {[%emt 0:00:38]} 10. Nbd2 {[%emt 0:02:09]} Re8 {[%emt 0:18:22]} 11. Bc2 {[%emt 0:00:10]} Nh5 {[%emt 0:14:04]} 12. Nf1 {[%emt 0:04:57]} Nf4 {[%emt 0:00:49]} 13. Ne3 {[%emt 0:18:19]} exd4 {[%emt 0:12:01]} 14. cxd4 {[%emt 0:10:06]} Nb4 {[%emt 0:01:19]} 15. Bb1 {[%emt 0:01:28]} Bb5 {[%emt 0:00:30]} 16. a4 {[%emt 0:01:39]} Bd3 {[%emt 0:01:28]} 17. Nc2 {[%emt 0:03:35]} Bxc2 {[%emt 0:07:33]} 18. Bxc2 {[%emt 0:00:07]} Nxc2 {[%emt 0:03:00]} 19. Qxc2 {[%emt 0:00:05]} Ne6 {[%emt 0:00:20]} 20. d5 {[%emt 0:07:11]} Nd4 {[%emt 0:01:58]} 21. Nxd4 {[%emt 0:01:49]} Bxd4 {[%emt 0:00:02]} 22. Be3 {[%emt 0:00:58]} Bg7 {[%emt 0:00:24]} 23. Rac1 {[%emt 0:02:54]} Rc8 {[%emt 0:00:33]} 24. Qb3 {[%emt 0:09:02]} Rxe4 {[%emt 0:12:00]} 25. a5 c5 {[%emt 0:10:28]} 26. Qxb7 {[%emt 0:10:37]} Rb4 {[%emt 0:06:32]} 27. Qxa6 {[%emt 0:00:06]} Ra8 {[%emt 0:01:03]} 28. Qc6 {[%emt 0:00:29]} Rc8 {[%emt 0:01:56]} 29. Qa6 {[%emt 0:00:06]} Ra8 {[%emt 0:00:56]} 30. Qc6 {[%emt 0:01:14]} Rc8 {[%emt 0:00:33]} 31. Qa6 {[%emt 0:00:05]} Ra8 1/2-1/2

[Event "5th EKA IIFL Investment 2019"]
[Site "Mumbai"]
[Date "2019.12.31"]
[Round "2.22"]
[White "Gandhi, Anish"]
[Black "Manik, Mikulas"]
[Result "1-0"]
[ECO "E71"]
[WhiteElo "2168"]
[BlackElo "2379"]
[Annotator "ChessBase"]
[PlyCount "87"]
[EventDate "2019.12.30"]
[EventType "swiss"]
[EventCountry "IND"]
[SourceTitle "playchess.com"]
[Source "ChessBase"]
[SourceQuality "1"]
[TimeControl "40/5400+30:1800+30"]

1. d4 {[%emt 0:00:00]} Nf6 {[%emt 0:00:00]} 2. c4 {[%emt 0:00:00]} g6 {[%emt 0:00:00]} 3. Nc3 {[%emt 0:00:00]} Bg7 {[%emt 0:00:00]} 4. e4 {[%emt 0:00:06]} d6 {[%emt 0:00:00]} 5. h3 {[%emt 0:00:15]} O-O {[%emt 0:00:00]} 6. Nf3 {[%emt 0:00:08]} e5 {[%emt 0:01:45]} 7. d5 {[%emt 0:00:18]} a5 {[%emt 0:01:02]} 8. Be3 {[%emt 0:00:50]} Na6 {[%emt 0:01:01]} 9. g4 {[%emt 0:02:03]} Nc5 {[%emt 0:03:03]} 10. Nd2 {[%emt 0:00:09]} c6 {[%emt 0:02:33]} 11. Be2 {[%emt 0:01:33]} Nfd7 {[%emt 0:05:43]} 12. h4 {[%emt 0:02:56]} Nb6 {[%emt 0:00:17]} 13. g5 {[%emt 0:12:34]} Bd7 {[%emt 0:05:09]} 14. h5 {[%emt 0:08:54]} Rc8 {[%emt 0:02:19]} 15. Nb3 {[%emt 0:09:15]} Nba4 {[%emt 0:02:48]} 16. Nxa4 {[%emt 0:07:41]} Nxa4 {[%emt 0:01:45]} 17. Qd2 {[%emt 0:01:51]} cxd5 {[%emt 0:05:39]} 18. cxd5 {[%emt 0:00:32]} b6 {[%emt 0:02:27]} 19. f3 {[%emt 0:10:01]} Nc5 {[%emt 0:01:36]} 20. Nxc5 {[%emt 0:02:12]} bxc5 {[%emt 0:00:08]} 21. Bc4 {[%emt 0:04:51]} Rb8 {[%emt 0:09:03]} 22. h6 {[%emt 0:05:22]} Bh8 {[%emt 0:00:07]} 23. O-O-O {[%emt 0:00:14]} Bb5 {[%emt 0:13:24]} 24. Bxb5 {[%emt 0:03:02]} Rxb5 {[%emt 0:00:13]} 25. Qd3 {[%emt 0:00:53]} Qb6 {[%emt 0:00:46]} 26. Rd2 {[%emt 0:00:27]} f5 {[%emt 0:03:58]} 27. Rc2 {[%emt 0:02:09]} a4 {[%emt 0:08:01]} 28. Rhh2 {[%emt 0:02:34]} Rb4 {[%emt 0:01:39]} 29. a3 {[%emt 0:11:28]} Rb3 {[%emt 0:11:53]} 30. Rc3 {[%emt 0:00:50]} fxe4 {[%emt 0:03:08]} 31. Rxb3 {[%emt 0:03:04]} axb3 {[%emt 0:02:43]} 32. fxe4 {[%emt 0:00:27]} Qa5 {[%emt 0:00:51]} 33. Rh1 {[%emt 0:01:17]} Qa4 {[%emt 0:00:52]} 34. Rh2 {[%emt 0:03:50]} c4 {[%emt 0:03:06]} 35. Qc3 {[%emt 0:01:06]} Rf1+ {[%emt 0:04:25]} 36. Kd2 {[%emt 0:00:05]} Ra1 {[%emt 0:00:33]} 37. Qb4 {[%emt 0:01:41]} Qe8 {[%emt 0:01:34]} 38. Rf2 {[%emt 0:00:38]} Rb1 {[%emt 0:00:15]} 39. Kc3 {[%emt 0:01:18]} Re1 {[%emt 0:00:07]} 40. Kd2 {[%emt 0:00:00]} Rb1 {[%emt 0:00:00]} 41. Qxd6 {[%emt 0:05:09]} Rxb2+ {[%emt 0:01:32]} 42. Kc3 {[%emt 0:01:34]} Rxf2 {[%emt 0:00:36]} 43. Bxf2 {[%emt 0:00:05]} Qb5 {[%emt 0:00:14]} 44. Bc5 {[%emt 0:00:46]} 1-0

[Event "5th EKA IIFL Investment 2019"]
[Site "Mumbai"]
[Date "2019.12.31"]
[Round "2.23"]
[White "Czebe, Attila"]
[Black "Dere Pushkar"]
[Result "1-0"]
[ECO "A05"]
[WhiteElo "2374"]
[BlackElo "2061"]
[Annotator "ChessBase"]
[PlyCount "95"]
[EventDate "2019.12.30"]
[EventType "swiss"]
[EventCountry "IND"]
[SourceTitle "playchess.com"]
[Source "ChessBase"]
[SourceQuality "1"]
[TimeControl "40/5400+30:1800+30"]

1. Nf3 {[%emt 0:00:14]} Nf6 {[%emt 0:00:00]} 2. g3 {[%emt 0:00:44]} g6 {[%emt 0:00:17]} 3. b3 {[%emt 0:00:19]} Bg7 {[%emt 0:00:49]} 4. Bb2 {[%emt 0:00:05]} d5 {[%emt 0:01:52]} 5. Bg2 {[%emt 0:00:04]} O-O {[%emt 0:00:35]} 6. O-O {[%emt 0:00:04]} c5 {[%emt 0:01:25]} 7. e3 {[%emt 0:01:47]} Nc6 {[%emt 0:00:41]} 8. Ne5 {[%emt 0:00:36]} Qc7 {[%emt 0:05:43]} 9. Nxc6 {[%emt 0:00:55]} bxc6 {[%emt 0:05:33]} 10. Nc3 {[%emt 0:00:19]} Rb8 {[%emt 0:10:40]} 11. Na4 {[%emt 0:01:25]} Nd7 {[%emt 0:09:46]} 12. Bxg7 {[%emt 0:01:07]} Kxg7 {[%emt 0:00:03]} 13. d4 {[%emt 0:03:46]} cxd4 {[%emt 0:05:06]} 14. exd4 {[%emt 0:00:06]} Ba6 {[%emt 0:01:54]} 15. Re1 {[%emt 0:00:03]} e6 {[%emt 0:00:14]} 16. Qd2 {[%emt 0:00:20]} Rfc8 {[%emt 0:14:39]} 17. Re3 {[%emt 0:05:28]} Bb5 {[%emt 0:04:23]} 18. Nc3 {[%emt 0:05:08]} c5 {[%emt 0:01:51]} 19. Nxb5 {[%emt 0:01:06]} Rxb5 {[%emt 0:00:06]} 20. c4 {[%emt 0:00:17]} dxc4 {[%emt 0:00:38]} 21. d5 {[%emt 0:03:00]} cxb3 {[%emt 0:06:09]} 22. dxe6 {[%emt 0:00:21]} b2 {[%emt 0:08:58]} 23. Rb1 {[%emt 0:00:23]} Ne5 {[%emt 0:02:02]} 24. Rxb2 {[%emt 0:09:38]} Rd8 {[%emt 0:00:10]} 25. Qxd8 {[%emt 0:10:19]} Qxd8 {[%emt 0:03:22]} 26. Rxb5 {[%emt 0:00:02]} Qd1+ {[%emt 0:01:44]} 27. Bf1 {[%emt 0:00:01]} Nf3+ {[%emt 0:01:21]} 28. Rxf3 {[%emt 0:02:45]} Qxf3 {[%emt 0:00:05]} 29. Rxc5 {[%emt 0:00:43]} Qb7 {[%emt 0:01:37]} 30. exf7 {[%emt 0:00:24]} Qxf7 {[%emt 0:00:19]} 31. a4 {[%emt 0:01:00]} Qe7 {[%emt 0:00:44]} 32. Rb5 {[%emt 0:00:24]} Qe4 {[%emt 0:00:58]} 33. a5 {[%emt 0:00:18]} Kh6 {[%emt 0:01:13]} 34. h4 {[%emt 0:00:37]} Qd4 {[%emt 0:01:13]} 35. Rb7 {[%emt 0:00:44]} Qc5 {[%emt 0:01:57]} 36. a6 {[%emt 0:01:05]} Qd4 {[%emt 0:00:13]} 37. Rf7 {[%emt 0:02:48]} Qb6 {[%emt 0:01:50]} 38. Kh2 {[%emt 0:03:59]} g5 {[%emt 0:02:27]} 39. Bd3 {[%emt 0:03:05]} Kh5 {[%emt 0:03:53]} 40. Rxh7+ {[%emt 0:00:00]} Kg4 {[%emt 0:00:00]} 41. Rf7 {[%emt 0:09:09]} gxh4 {[%emt 0:05:30]} 42. f3+ {[%emt 0:01:01]} Kh5 {[%emt 0:00:28]} 43. Rh7+ {[%emt 0:00:05]} Kg5 {[%emt 0:00:24]} 44. Rg7+ {[%emt 0:00:04]} Kh6 {[%emt 0:02:17]} 45. Rg6+ {[%emt 0:00:02]} Qxg6 {[%emt 0:00:05]} 46. Bxg6 {[%emt 0:00:03]} hxg3+ {[%emt 0:00:05]} 47. Kxg3 {[%emt 0:00:04]} Kxg6 {[%emt 0:00:03]} 48. Kg4 {[%emt 0:00:05]} 1-0

[Event "5th EKA IIFL Investment 2019"]
[Site "Mumbai"]
[Date "2019.12.31"]
[Round "2.24"]
[White "Neelash Saha"]
[Black "Mahindrakar Indrajeet"]
[Result "1-0"]
[ECO "E71"]
[WhiteElo "2356"]
[BlackElo "2042"]
[Annotator "ChessBase"]
[PlyCount "139"]
[EventDate "2019.12.30"]
[EventType "swiss"]
[EventCountry "IND"]
[SourceTitle "playchess.com"]
[Source "ChessBase"]
[SourceQuality "1"]
[TimeControl "40/5400+30:1800+30"]

1. d4 {[%emt 0:00:00]} Nf6 {[%emt 0:00:02]} 2. c4 {[%emt 0:00:00]} g6 {[%emt 0:02:35]} 3. Nc3 {[%emt 0:00:00]} Bg7 {[%emt 0:00:12]} 4. e4 {[%emt 0:00:00]} d6 {[%emt 0:00:18]} 5. h3 {[%emt 0:00:03]} O-O {[%emt 0:05:42]} 6. Be3 {[%emt 0:00:05]} e5 {[%emt 0:08:34]} 7. d5 {[%emt 0:00:33]} Nbd7 {[%emt 0:05:14]} 8. g4 {[%emt 0:09:57]} Nc5 {[%emt 0:02:49]} 9. f3 {[%emt 0:00:31]} a5 {[%emt 0:03:05]} 10. h4 {[%emt 0:04:41]} Ne8 {[%emt 0:32:37]} 11. h5 {[%emt 0:05:26]} Bf6 {[%emt 0:08:43]} 12. Qd2 {[%emt 0:03:50]} Bh4+ {[%emt 0:01:41]} 13. Kd1 {[%emt 0:01:56]} g5 {[%emt 0:07:53]} 14. Kc2 {[%emt 0:25:31]} Kh8 {[%emt 0:01:30]} 15. Bd3 {[%emt 0:07:32]} Rg8 {[%emt 0:01:41]} 16. Nge2 {[%emt 0:01:32]} Bd7 {[%emt 0:07:19]} 17. Rad1 {[%emt 0:09:41]} a4 {[%emt 0:00:56]} 18. Kb1 {[%emt 0:01:47]} Ra6 {[%emt 0:01:48]} 19. Bc2 {[%emt 0:01:58]} Qa8 {[%emt 0:02:08]} 20. Nb5 {[%emt 0:03:00]} Qd8 {[%emt 0:00:59]} 21. Rhg1 {[%emt 0:02:36]} Bxb5 {[%emt 0:01:53]} 22. cxb5 {[%emt 0:00:22]} Ra8 {[%emt 0:00:23]} 23. Qb4 {[%emt 0:03:03]} Qe7 {[%emt 0:00:54]} 24. Nc3 {[%emt 0:08:31]} Nf6 {[%emt 0:00:33]} 25. Nxa4 {[%emt 0:03:24]} Nfd7 {[%emt 0:00:43]} 26. Nxc5 {[%emt 0:01:40]} dxc5 {[%emt 0:00:43]} 27. Qc3 {[%emt 0:00:31]} Qd6 {[%emt 0:00:34]} 28. a4 {[%emt 0:00:44]} b6 {[%emt 0:00:39]} 29. b3 {[%emt 0:00:41]} h6 {[%emt 0:01:03]} 30. Bd3 {[%emt 0:01:05]} Kh7 {[%emt 0:00:27]} 31. Rdf1 {[%emt 0:00:43]} Kh8 {[%emt 0:00:28]} 32. Kc2 {[%emt 0:00:40]} Qe7 {[%emt 0:00:48]} 33. Bc1 {[%emt 0:00:19]} Rgd8 {[%emt 0:00:50]} 34. Bb2 {[%emt 0:00:31]} Kg8 {[%emt 0:00:12]} 35. Rg2 {[%emt 0:00:19]} Ra7 {[%emt 0:00:19]} 36. Bc4 {[%emt 0:00:19]} Qd6 {[%emt 0:00:43]} 37. Rh1 {[%emt 0:01:02]} Re8 {[%emt 0:00:47]} 38. Qe3 {[%emt 0:01:48]} Kh7 {[%emt 0:00:17]} 39. Bc1 {[%emt 0:01:22]} Rg8 {[%emt 0:00:29]} 40. Rh3 {[%emt 0:00:00]} Raa8 {[%emt 0:00:00]} 41. Kd1 {[%emt 0:03:01]} Nf8 {[%emt 0:03:41]} 42. Ke2 {[%emt 0:00:59]} Rd8 {[%emt 0:00:46]} 43. Rg1 {[%emt 0:01:47]} Qf6 {[%emt 0:03:01]} 44. Kf1 {[%emt 0:00:54]} Rd6 {[%emt 0:04:30]} 45. Kg2 {[%emt 0:00:22]} Nd7 {[%emt 0:01:15]} 46. Bd2 {[%emt 0:00:58]} Ra8 {[%emt 0:02:47]} 47. Ra1 {[%emt 0:00:54]} Nf8 {[%emt 0:03:10]} 48. Rhh1 {[%emt 0:01:02]} Qd8 {[%emt 0:03:44]} 49. Ra2 {[%emt 0:01:12]} Qf6 {[%emt 0:01:14]} 50. Qc3 {[%emt 0:00:44]} Ra5 {[%emt 0:02:08]} 51. Rc1 {[%emt 0:04:50]} Kg8 {[%emt 0:03:31]} 52. Be2 {[%emt 0:01:10]} Nd7 {[%emt 0:00:55]} 53. Be3 {[%emt 0:04:04]} Kg7 {[%emt 0:02:13]} 54. b4 {[%emt 0:01:18]} cxb4 {[%emt 0:00:41]} 55. Qxb4 {[%emt 0:00:14]} Ra7 {[%emt 0:01:03]} 56. a5 {[%emt 0:02:02]} Kh7 {[%emt 0:01:02]} 57. Qd2 {[%emt 0:00:51]} Nf8 {[%emt 0:02:19]} 58. axb6 {[%emt 0:00:32]} Rxa2 {[%emt 0:00:09]} 59. Qxa2 {[%emt 0:00:05]} cxb6 {[%emt 0:00:19]} 60. Qa8 {[%emt 0:01:57]} Kg7 {[%emt 0:01:05]} 61. Rc8 {[%emt 0:00:30]} Qe7 {[%emt 0:00:50]} 62. Bd2 {[%emt 0:01:41]} Rf6 {[%emt 0:01:15]} 63. Bc3 {[%emt 0:01:55]} Rf4 {[%emt 0:00:26]} 64. Qb8 {[%emt 0:01:12]} Nd7 {[%emt 0:00:21]} 65. Rg8+ {[%emt 0:00:48]} Kf6 {[%emt 0:00:02]} 66. Qc7 {[%emt 0:00:17]} Qc5 {[%emt 0:01:23]} 67. Qd8+ {[%emt 0:00:39]} Qe7 {[%emt 0:00:24]} 68. Bb4 {[%emt 0:00:18]} Nc5 {[%emt 0:00:35]} 69. Bxc5 {[%emt 0:00:16]} bxc5 {[%emt 0:00:24]} 70. b6 {[%emt 0:00:19]} 1-0

[Event "5th EKA IIFL Investment 2019"]
[Site "Mumbai"]
[Date "2019.12.31"]
[Round "2.25"]
[White "Jay Kundaliya"]
[Black "Kaustuv, Kundu"]
[Result "0-1"]
[ECO "D07"]
[WhiteElo "2088"]
[BlackElo "2349"]
[Annotator "ChessBase"]
[PlyCount "128"]
[EventDate "2019.12.30"]
[EventType "swiss"]
[EventCountry "IND"]
[SourceTitle "playchess.com"]
[Source "ChessBase"]
[SourceQuality "1"]
[TimeControl "40/5400+30:1800+30"]

1. d4 {[%emt 0:00:02]} d5 {[%emt 0:00:09]} 2. c4 {[%emt 0:00:28]} Nc6 {[%emt 0:00:05]} 3. e3 {[%emt 0:15:54]} e5 {[%emt 0:01:19]} 4. dxe5 {[%emt 0:03:18]} Nxe5 {[%emt 0:00:36]} 5. Qxd5 {[%emt 0:01:16]} Bd6 {[%emt 0:03:35]} 6. Qd1 {[%emt 0:15:24]} Nf6 {[%emt 0:02:06]} 7. Nc3 {[%emt 0:03:32]} O-O {[%emt 0:01:53]} 8. Nf3 {[%emt 0:01:00]} Nxf3+ {[%emt 0:03:10]} 9. gxf3 {[%emt 0:00:15]} c6 {[%emt 0:01:13]} 10. Qc2 {[%emt 0:02:37]} Qc7 {[%emt 0:01:45]} 11. Bd2 {[%emt 0:01:58]} Be6 {[%emt 0:00:35]} 12. h4 {[%emt 0:02:48]} b5 {[%emt 0:00:54]} 13. cxb5 {[%emt 0:13:25]} cxb5 {[%emt 0:00:05]} 14. Bxb5 {[%emt 0:00:08]} Rab8 {[%emt 0:01:54]} 15. Bd3 {[%emt 0:00:29]} Rfc8 {[%emt 0:01:44]} 16. Ke2 {[%emt 0:14:36]} Qb7 {[%emt 0:01:44]} 17. Rhb1 {[%emt 0:01:51]} Rc5 {[%emt 0:06:18]} 18. Qa4 {[%emt 0:02:09]} Rh5 {[%emt 0:02:41]} 19. Ne4 {[%emt 0:07:21]} Nxe4 {[%emt 0:01:21]} 20. Bxe4 {[%emt 0:00:09]} Qe7 {[%emt 0:00:13]} 21. Bc3 {[%emt 0:00:48]} Bb4 {[%emt 0:04:27]} 22. a3 {[%emt 0:05:39]} Bxc3 {[%emt 0:04:36]} 23. bxc3 {[%emt 0:00:13]} Rc8 {[%emt 0:00:18]} 24. Rb7 {[%emt 0:01:59]} Bc4+ {[%emt 0:04:10]} 25. Qxc4 {[%emt 0:01:41]} Qxb7 {[%emt 0:00:05]} 26. Rd1 {[%emt 0:01:20]} Qb5 {[%emt 0:08:34]} 27. Qxb5 {[%emt 0:00:44]} Rxb5 {[%emt 0:00:05]} 28. Rd7 {[%emt 0:00:32]} Rb2+ {[%emt 0:01:05]} 29. Kd3 {[%emt 0:00:39]} Rb3 {[%emt 0:00:05]} 30. Kd4 {[%emt 0:01:40]} Rbxc3 {[%emt 0:04:33]} 31. Rxa7 {[%emt 0:00:06]} Rc1 {[%emt 0:00:20]} 32. a4 {[%emt 0:00:54]} g6 {[%emt 0:06:29]} 33. a5 {[%emt 0:00:17]} Rd1+ {[%emt 0:03:55]} 34. Ke5 {[%emt 0:00:11]} Re8+ {[%emt 0:00:29]} 35. Kf4 {[%emt 0:00:07]} Kg7 {[%emt 0:04:34]} 36. a6 {[%emt 0:00:22]} Rd6 {[%emt 0:00:29]} 37. Bb7 {[%emt 0:00:41]} Kh6 {[%emt 0:06:03]} 38. e4 {[%emt 0:00:31]} Rf6+ {[%emt 0:08:44]} 39. Kg3 {[%emt 0:00:15]} g5 {[%emt 0:03:07]} 40. hxg5+ {[%emt 0:00:00]} Kxg5 {[%emt 0:00:00]} 41. Bd5 {[%emt 0:09:03]} Rg8 {[%emt 0:09:02]} 42. f4+ {[%emt 0:03:17]} Rxf4 {[%emt 0:07:32]} 43. Rxf7 {[%emt 0:00:07]} Rxf7 {[%emt 0:01:26]} 44. Bxf7 {[%emt 0:00:02]} Ra8 {[%emt 0:00:16]} 45. Bc4 {[%emt 0:00:21]} Rc8 {[%emt 0:02:52]} 46. f4+ {[%emt 0:02:06]} Kg6 {[%emt 0:00:17]} 47. Bd5 {[%emt 0:06:00]} Rc3+ {[%emt 0:00:13]} 48. Kg4 {[%emt 0:01:24]} Ra3 {[%emt 0:00:33]} 49. Bb7 {[%emt 0:00:51]} Ra4 {[%emt 0:00:46]} 50. e5 {[%emt 0:03:33]} h5+ {[%emt 0:05:58]} 51. Kf3 {[%emt 0:00:29]} Ra3+ {[%emt 0:00:49]} 52. Ke4 {[%emt 0:00:31]} h4 {[%emt 0:01:31]} 53. Kd5 {[%emt 0:06:11]} h3 {[%emt 0:00:56]} 54. Ke6 {[%emt 0:01:58]} h2 {[%emt 0:00:58]} 55. f5+ {[%emt 0:01:27]} Kg5 {[%emt 0:00:14]} 56. f6 {[%emt 0:01:12]} Rxa6+ {[%emt 0:00:15]} 57. Bxa6 {[%emt 0:00:07]} h1=Q {[%emt 0:00:06]} 58. f7 {[%emt 0:00:07]} Qc6+ {[%emt 0:00:27]} 59. Ke7 {[%emt 0:00:12]} Qc5+ {[%emt 0:00:37]} 60. Ke8 {[%emt 0:00:35]} Qxe5+ {[%emt 0:00:09]} 61. Kd7 {[%emt 0:02:39]} Qf5+ {[%emt 0:00:14]} 62. Ke7 {[%emt 0:00:11]} Qf6+ {[%emt 0:00:04]} 63. Ke8 {[%emt 0:00:02]} Qe6+ {[%emt 0:00:05]} 64. Kf8 {[%emt 0:00:06]} Kf6 {[%emt 0:00:11]} 0-1